fUST/lending_fUST_20250603
["ID","MTS","AMOUNT","RATE_DAILY","PERIOD"]
[363849486,1748898648716,-440.0,0.00019442,2]
[363849488,1748898648726,-151.0,0.00019442,2]
[363849490,1748898648737,-354.924737,0.00019442,2]
[363849492,1748898648746,-354.924737,0.00019442,2]
[363849494,1748898648757,-151.0,0.00019442,2]
[363849496,1748898648767,-440.0,0.00019442,2]
[363849498,1748898648777,-181.08010149,0.00019453,2]
[363849500,1748898648787,-187.78006525,0.00019508,2]
[363849502,1748898648796,-711.87223538,0.00019555,2]
[363849504,1748898648806,-194.72792766,0.00019563,2]
[363849506,1748898648816,-151.0,0.000196,2]
[363849508,1748898648826,-201.93286099,0.00019618,2]
[363849510,1748898648836,-180.693,0.00019619,2]
[363849512,1748898648846,-274.779,0.00019619,2]
[363849514,1748898648856,-500.0,0.00019667,2]
[363849517,1748898648866,-151.0,0.00019667,2]
[363849519,1748898648877,-2735.43196046,0.00019671,2]
[363849521,1748898648888,-329.56243184,0.00019673,2]
[363849523,1748898648898,-1252.42,0.00019713,2]
[363849525,1748898648908,-1041.47,0.00019714,2]
[363849527,1748898648918,-1168.92,0.00019714,2]
[363849529,1748898648928,-440.0,0.00019714,2]
[363849531,1748898648938,-440.0,0.00019714,2]
[363849533,1748898648948,-1243.84,0.00019714,2]
[363849535,1748898648957,-440.0,0.00019714,2]
[363849537,1748898648967,-2429.72,0.00019714,2]
[363849539,1748898648977,-2446.38,0.00019714,2]
[363849541,1748898648991,-2932.61,0.00019714,2]
[363849543,1748898649002,-320.0,0.00019714,2]
[363849545,1748898649013,-759.05,0.00019714,2]
[363849547,1748898649022,-2075.53,0.00019714,2]
[363849549,1748898649031,-440.0,0.00019714,2]
[363849551,1748898649040,-440.0,0.00019714,2]
[363849553,1748898649050,-440.0,0.00019714,2]
[363849555,1748898649061,-1209.51,0.00019714,2]
[363849557,1748898649072,-440.0,0.00019714,2]
[363849559,1748898649082,-440.0,0.00019714,2]
[363849561,1748898649094,-822.63,0.00019715,2]
[363849563,1748898649103,-209.52,0.00019715,2]
[363849565,1748898649113,-440.0,0.00019715,2]
[363849567,1748898649122,-440.0,0.00019715,2]
[363849569,1748898649133,-225.64,0.00019715,2]
[363849571,1748898649142,-440.0,0.00019715,2]
[363849573,1748898649152,-440.0,0.00019715,2]
[363849575,1748898649161,-440.0,0.00019715,2]
[363849577,1748898649171,-1447.71,0.00019715,2]
[363849579,1748898649181,-3248.01,0.00019715,2]
[363849581,1748898649191,-769.84,0.00019715,2]
[363849583,1748898649201,-709.82,0.00019715,2]
[363849585,1748898649211,-571.83,0.00019715,2]
[363849587,1748898649221,-3691.36,0.00019715,2]
[363849589,1748898649231,-616.2,0.00019715,2]
[363849591,1748898649241,-1320.38,0.00019715,2]
[363849593,1748898649250,-1361.05,0.00019715,2]
[363849595,1748898649261,-440.0,0.00019715,2]
[363849597,1748898649271,-1388.18,0.00019715,2]
[363849599,1748898649280,-587.08,0.00019715,2]
[363849601,1748898649289,-440.0,0.00019716,2]
[363849603,1748898649299,-440.0,0.00019716,2]
[363849605,1748898649309,-900.0,0.00019766,2]
[363849607,1748898649318,-7601.78,0.00019771,2]
[363849609,1748898649328,-151.808954,0.00019771,2]
[363849611,1748898649337,-151.0,0.00019771,2]
[363849613,1748898649347,-151.0,0.00019771,2]
[363849615,1748898649356,-151.0,0.00019771,2]
[363849618,1748898649367,-151.0,0.00019771,2]
[363849620,1748898649377,-1054.348671,0.00019771,2]
[363849621,1748898649387,-1054.348671,0.00019771,2]
[363849623,1748898649397,-500.0,0.00019789,2]
[363849625,1748898649406,-500.91468931,0.00019794,2]
[363849628,1748898649416,-711.87223538,0.00019797,2]
[363849630,1748898649425,-151.0,0.000199,2]
[363849631,1748898649434,-151.0,0.000199,2]
[363849633,1748898649443,-403.0,0.00019931,2]
[363849634,1748898649452,-1252.42,0.00019987,2]
[363849636,1748898649462,-12567.26611511,0.00019987,3]
[363849637,1748898649471,-84018.82362635,0.00019988,2]
[363849639,1748898649480,-1041.47,0.00019988,2]
[363849640,1748898649490,-1168.92,0.00019988,2]
[363849642,1748898649499,-440.0,0.00019988,2]
[363849644,1748898649508,-440.0,0.00019988,2]
[363849645,1748898649518,-1243.84,0.00019988,2]
[363849647,1748898649527,-440.0,0.00019988,2]
[363849648,1748898649536,-2429.72,0.00019988,2]
[363849650,1748898649546,-2446.38,0.00019988,2]
[363849651,1748898649555,-2932.61,0.00019988,2]
[363849653,1748898649564,-759.05,0.00019988,2]
[363849654,1748898649573,-204.401088,0.00019988,2]
[363849656,1748898649583,-2075.53,0.00019988,2]
[363849657,1748898649593,-204.401088,0.00019988,2]
[363849659,1748898649605,-440.0,0.00019988,2]
[363849660,1748898649614,-440.0,0.00019988,2]
[363849662,1748898649623,-440.0,0.00019988,2]
[363849664,1748898649632,-1209.51,0.00019988,2]
[363849665,1748898649643,-440.0,0.00019988,2]
[363849667,1748898649653,-440.0,0.00019988,2]
[363849668,1748898649663,-822.63,0.00019989,2]
[363849670,1748898649676,-440.0,0.00019989,2]
[363849672,1748898649685,-440.0,0.00019989,2]
[363849673,1748898649694,-151.0,0.00019989,2]
[363849675,1748898649703,-151.0,0.00019989,2]
[363849677,1748898649712,-440.0,0.00019989,2]
[363849678,1748898649723,-481.431687,0.00019989,2]
[363849680,1748898649733,-481.431687,0.00019989,2]
[363849682,1748898649742,-440.0,0.00019989,2]
[363849683,1748898649751,-440.0,0.00019989,2]
[363849685,1748898649760,-1447.71,0.00019989,2]
[363849686,1748898649770,-3248.01,0.00019989,2]
[363849688,1748898649780,-769.84,0.00019989,2]
[363849690,1748898649790,-709.82,0.00019989,2]
[363849692,1748898649800,-571.83,0.00019989,2]
[363849693,1748898649810,-3691.36,0.00019989,2]
[363849695,1748898649819,-616.2,0.00019989,2]
[363849696,1748898649829,-1320.38,0.00019989,2]
[363849698,1748898649838,-1361.05,0.00019989,2]
[363849700,1748898649848,-440.0,0.00019989,2]
[363849701,1748898649857,-1388.18,0.00019989,2]
[363849703,1748898649866,-587.08,0.00019989,2]
[363849704,1748898649876,-151.0,0.0001999,2]
[363849706,1748898649885,-440.0,0.0001999,2]
[363849708,1748898649895,-151.0,0.0001999,2]
[363849709,1748898649905,-440.0,0.0001999,2]
[363849711,1748898649914,-151.0,0.0001999,2]
[363849712,1748898649923,-673.475798,0.0001999,2]
[363849714,1748898649933,-673.475798,0.0001999,2]
[363849716,1748898649943,-212.83419937,0.0001999,3]
[363849717,1748898649953,-842.5625,0.0001999,3]
[363849719,1748898649963,-2403.0,0.0002,2]
[363849721,1748898649973,-151.0,0.0002,2]
[363849722,1748898649983,-300.0,0.0002,2]
[363849724,1748898649993,-251.13932035,0.00020007,13]
[363849725,1748898650002,-711.87223538,0.00020038,2]
[363849727,1748898650012,-151.0,0.00020152,2]
[363849729,1748898650021,-151.0,0.00020152,2]
[363849730,1748898650030,-410.536259,0.00020152,2]
[363849732,1748898650039,-410.536259,0.00020152,2]
[363849734,1748898650049,-151.0,0.00020152,2]
[363849735,1748898650058,-151.0,0.00020152,2]
[363849737,1748898650068,-152.528378,0.00020152,2]
[363849738,1748898650078,-152.528378,0.00020152,2]
[363849740,1748898650088,-274.223042,0.00020152,2]
[363849742,1748898650097,-274.223042,0.00020152,2]
[363849743,1748898650107,-157.752796,0.00020152,2]
[363849745,1748898650117,-414.471009,0.00020187,2]
[363849746,1748898650126,-1000.0,0.00020215,2]
[363849748,1748898650136,-1252.42,0.00020261,2]
[363849750,1748898650145,-1041.47,0.00020262,2]
[363849751,1748898650154,-1168.92,0.00020262,2]
[363849753,1748898650164,-440.0,0.00020262,2]
[363849755,1748898650175,-440.0,0.00020262,2]
[363849756,1748898650185,-1243.84,0.00020262,2]
[363849758,1748898650195,-440.0,0.00020262,2]
[363849759,1748898650206,-2429.72,0.00020262,2]
[363849761,1748898650216,-2446.38,0.00020262,2]
[363849763,1748898650226,-2932.61,0.00020262,2]
[363849764,1748898650237,-759.05,0.00020262,2]
[363849766,1748898650247,-2075.53,0.00020262,2]
[363849767,1748898650257,-440.0,0.00020262,2]
[363849769,1748898650266,-440.0,0.00020262,2]
[363849771,1748898650276,-166.975821,0.00020262,2]
[363849772,1748898650286,-440.0,0.00020262,2]
[363849774,1748898650296,-1209.51,0.00020262,2]
[363849776,1748898650306,-440.0,0.00020262,2]
[363849777,1748898650316,-440.0,0.00020262,2]
[363849779,1748898650325,-1054.348671,0.00020262,2]
[363849780,1748898650335,-1054.348671,0.00020262,2]
[363849782,1748898650345,-822.63,0.00020263,2]
[363849784,1748898650355,-440.0,0.00020263,2]
[363849785,1748898650365,-440.0,0.00020263,2]
[363849787,1748898650374,-440.0,0.00020263,2]
[363849788,1748898650383,-440.0,0.00020263,2]
[363849790,1748898650393,-440.0,0.00020263,2]
[363849792,1748898650402,-1447.71,0.00020263,2]
[363849793,1748898650412,-3248.01,0.00020263,2]
[363849795,1748898650421,-769.84,0.00020263,2]
[363849796,1748898650430,-709.82,0.00020263,2]
[363849798,1748898650440,-571.83,0.00020263,2]
[363849800,1748898650450,-3691.36,0.00020263,2]
[363849801,1748898650459,-616.2,0.00020263,2]
[363849803,1748898650469,-1320.38,0.00020263,2]
[363849805,1748898650479,-1361.05,0.00020263,2]
[363849806,1748898650490,-440.0,0.00020263,2]
[363849808,1748898650500,-1388.18,0.00020263,2]
[363849810,1748898650509,-587.08,0.00020263,2]
[363849811,1748898650519,-440.0,0.00020264,2]
[363849813,1748898650528,-440.0,0.00020264,2]
[363849814,1748898650538,-12668.79298183,0.0002027,3]
[363849816,1748898650548,-711.87223538,0.00020279,3]
[363849817,1748898650558,-1000.0,0.00020337,2]
[363849819,1748898650567,-151.0,0.00020354,2]
[363849821,1748898650577,-151.0,0.00020354,2]
[363849822,1748898650587,-151.0,0.00020354,2]
[363849824,1748898650599,-1326.837435,0.00020354,2]
[363849826,1748898650610,-1326.837435,0.00020354,2]
[363849827,1748898650620,-396.594112,0.00020354,2]
[363849829,1748898650629,-396.594112,0.00020354,2]
[363849830,1748898650639,-151.0,0.00020354,2]
[363849832,1748898650649,-151.0,0.00020354,2]
[363849834,1748898650659,-204.401088,0.00020354,2]
[363849835,1748898650668,-204.401088,0.00020354,2]
[363849836,1748898650679,-151.0,0.00020354,2]
[363849837,1748898650689,-151.0,0.00020354,2]
[363849838,1748898650699,-151.0,0.00020354,2]
[363849839,1748898650708,-151.0,0.00020354,2]
[363849840,1748898650718,-300.0,0.00020354,2]
[363849841,1748898650728,-151.0,0.00020354,2]
[363849842,1748898650739,-300.0,0.00020354,2]
[363849847,1748898650844,-500.0,0.00020354,2]
[363849849,1748898650867,-151.0,0.00020354,2]
[363849851,1748898650876,-500.0,0.00020354,2]
[363849853,1748898650886,-300.0,0.00020354,2]
[363849855,1748898650895,-500.0,0.00020354,2]
[363849857,1748898650904,-151.0,0.00020354,2]
[363849859,1748898650913,-500.0,0.00020354,2]
[363849861,1748898650922,-500.0,0.00020354,2]
[363849863,1748898650931,-300.0,0.00020354,2]
[363849865,1748898650941,-151.0,0.00020354,2]
[363849867,1748898650950,-500.0,0.00020354,2]
[363849869,1748898650959,-500.0,0.00020354,2]
[363849871,1748898650969,-202.5886477,0.00020354,2]
[363849873,1748898650978,-500.0,0.00020354,2]
[363849875,1748898650989,-500.0,0.00020354,2]
[363849877,1748898650998,-500.0,0.00020354,2]
[363849879,1748898651007,-500.0,0.00020354,2]
[363849881,1748898651016,-226.76390347,0.00020354,2]
[363849883,1748898651026,-500.0,0.00020354,2]
[363849885,1748898651042,-500.0,0.00020354,2]
[363849888,1748898651051,-5000.0,0.00020354,2]
[363849890,1748898651061,-500.0,0.00020354,2]
[363849892,1748898651071,-500.0,0.00020354,2]
[363849894,1748898651080,-500.0,0.00020354,2]
[363849896,1748898651090,-500.0,0.00020354,2]
[363849898,1748898651099,-500.0,0.00020354,2]
[363849900,1748898651108,-207.4,0.00020354,2]
[363849902,1748898651117,-500.0,0.00020354,2]
[363849904,1748898651127,-1841.37601661,0.00020354,2]
[363849906,1748898651137,-500.0,0.00020354,2]
[363849908,1748898651147,-500.0,0.00020354,2]
[363849909,1748898651156,-500.0,0.00020354,2]
[363849911,1748898651165,-500.0,0.00020354,2]
[363849913,1748898651175,-500.0,0.00020354,2]
[363849916,1748898651185,-500.0,0.00020354,2]
[363849918,1748898651195,-500.0,0.00020354,2]
[363849919,1748898651204,-500.0,0.00020354,2]
[363849921,1748898651213,-500.0,0.00020354,2]
[363849923,1748898651223,-500.0,0.00020354,2]
[363849925,1748898651232,-500.0,0.00020354,2]
[363849927,1748898651245,-151.0,0.000204,4]
[363849929,1748898651255,-711.87223538,0.00020521,3]
[363849931,1748898651264,-1252.42,0.00020535,2]
[363849933,1748898651274,-151.0,0.00020536,2]
[363849935,1748898651283,-822.63,0.00020536,2]
[363849937,1748898651292,-674.046634,0.00020536,2]
[363849939,1748898651301,-362.202484,0.00020536,2]
[363849941,1748898651310,-440.0,0.00020536,2]
[363849943,1748898651320,-674.046634,0.00020536,2]
[363849945,1748898651331,-362.202484,0.00020536,2]
[363849947,1748898651341,-440.0,0.00020536,2]
[363849949,1748898651350,-440.0,0.00020536,2]
[363849952,1748898651362,-151.0,0.00020536,2]
[363849954,1748898651372,-440.0,0.00020536,2]
[363849956,1748898651381,-440.0,0.00020536,2]
[363849958,1748898651391,-1447.71,0.00020536,2]
[363849960,1748898651401,-1041.47,0.00020536,2]
[363849962,1748898651410,-1168.92,0.00020536,2]
[363849964,1748898651420,-440.0,0.00020536,2]
[363849966,1748898651430,-3248.01,0.00020536,2]
[363849968,1748898651440,-440.0,0.00020536,2]
[363849970,1748898651450,-769.84,0.00020536,2]
[363849972,1748898651459,-709.82,0.00020536,2]
[363849974,1748898651469,-571.83,0.00020536,2]
[363849976,1748898651479,-3691.36,0.00020536,2]
[363849978,1748898651492,-1243.84,0.00020536,2]
[363849980,1748898651502,-440.0,0.00020536,2]
[363849982,1748898651511,-2429.72,0.00020536,2]
[363849984,1748898651522,-616.2,0.00020536,2]
[363849986,1748898651532,-2446.38,0.00020536,2]
[363849988,1748898651541,-2932.61,0.00020536,2]
[363849990,1748898651551,-1320.38,0.00020536,2]
[363849992,1748898651561,-1361.05,0.00020536,2]
[363849994,1748898651570,-759.05,0.00020536,2]
[363849996,1748898651579,-440.0,0.00020536,2]
[363849998,1748898651589,-2075.53,0.00020536,2]
[363850000,1748898651599,-440.0,0.00020536,2]
[363850002,1748898651611,-440.0,0.00020536,2]
[363850004,1748898651621,-1388.18,0.00020536,2]
[363850006,1748898651630,-440.0,0.00020536,2]
[363850008,1748898651640,-1209.51,0.00020536,2]
[363850010,1748898651650,-587.08,0.00020536,2]
[363850012,1748898651659,-551.9,0.00020536,2]
[363850014,1748898651669,-440.0,0.00020536,2]
[363850016,1748898651679,-440.0,0.00020538,2]
[363850018,1748898651689,-440.0,0.00020538,2]
[363850020,1748898651698,-160.013418,0.00020539,2]
[363850022,1748898651707,-160.013418,0.00020539,2]
[363850024,1748898651716,-500.0,0.00020547,2]
[363850026,1748898651726,-500.0,0.00020573,2]
[363850028,1748898651737,-151.0,0.00020599,2]
[363850030,1748898651747,-152.528378,0.00020599,2]
[363850032,1748898651757,-152.528378,0.00020599,2]
[363850034,1748898651766,-274.223042,0.00020599,2]
[363850036,1748898651776,-274.223042,0.00020599,2]
[363850038,1748898651787,-157.752796,0.00020599,2]
[363850040,1748898651797,-1128.83,0.000206,2]
[363850043,1748898651806,-151.0,0.000206,4]
[363850045,1748898651816,-2662.04,0.000206,2]
[363850046,1748898651825,-6972.39,0.000206,2]
[363850048,1748898651835,-151.0,0.000206,2]
[363850050,1748898651844,-151.0,0.000206,2]
[363850052,1748898651854,-151.0,0.000206,2]
[363850055,1748898651864,-170.902628,0.000206,2]
[363850057,1748898651874,-47999.23,0.000206,2]
[363850059,1748898651884,-481.431687,0.000206,2]
[363850061,1748898651893,-481.431687,0.000206,2]
[363850063,1748898651903,-673.475798,0.000206,2]
[363850065,1748898651913,-673.475798,0.000206,2]
[363850067,1748898651923,-151.0,0.000206,2]
[363850069,1748898651933,-204.401088,0.000206,2]
[363850071,1748898651943,-204.401088,0.000206,2]
[363850073,1748898651952,-151.0,0.000206,2]
[363850075,1748898651963,-1054.348671,0.000206,2]
[363850077,1748898651973,-1054.348671,0.000206,2]
[363850079,1748898651983,-10135.7,0.0002063,2]
[363850081,1748898651993,-151.0,0.00020699,2]
[363850083,1748898652003,-354.924737,0.00020699,2]
[363850085,1748898652013,-354.924737,0.00020699,2]
[363850087,1748898652023,-151.0,0.00020699,2]
[363850089,1748898652033,-534.44048896,0.000207,2]
[363850091,1748898652043,-500.0,0.000207,2]
[363850093,1748898652052,-500.0,0.000207,2]
[363850095,1748898652062,-500.0,0.000207,2]
[363850097,1748898652072,-500.0,0.000207,2]
[363850099,1748898652082,-711.87223538,0.00020762,3]
[363850101,1748898652092,-297.49248903,0.00020763,2]
[363850103,1748898652102,-500.0,0.0002078,2]
[363850105,1748898652112,-1252.42,0.00020809,2]
[363850107,1748898652121,-822.63,0.0002081,2]
[363850109,1748898652131,-440.0,0.0002081,2]
[363850111,1748898652141,-440.0,0.0002081,2]
[363850114,1748898652151,-582.20583078,0.0002081,2]
[363850116,1748898652161,-529.1,0.0002081,2]
[363850118,1748898652170,-440.0,0.0002081,2]
[363850120,1748898652180,-1447.71,0.0002081,2]
[363850122,1748898652190,-1041.47,0.0002081,2]
[363850124,1748898652200,-1168.92,0.0002081,2]
[363850126,1748898652210,-440.0,0.0002081,2]
[363850128,1748898652220,-3248.01,0.0002081,2]
[363850130,1748898652230,-440.0,0.0002081,2]
[363850132,1748898652240,-769.84,0.0002081,2]
[363850134,1748898652250,-709.82,0.0002081,2]
[363850136,1748898652260,-3691.36,0.0002081,2]
[363850138,1748898652270,-571.83,0.0002081,2]
[363850140,1748898652280,-1243.84,0.0002081,2]
[363850142,1748898652290,-440.0,0.0002081,2]
[363850144,1748898652299,-2429.72,0.0002081,2]
[363850146,1748898652309,-616.2,0.0002081,2]
[363850148,1748898652319,-2446.38,0.0002081,2]
[363850150,1748898652328,-2932.61,0.0002081,2]
[363850152,1748898652338,-1320.38,0.0002081,2]
[363850154,1748898652348,-1361.05,0.0002081,2]
[363850156,1748898652358,-759.05,0.0002081,2]
[363850158,1748898652367,-203.52,0.0002081,2]
[363850160,1748898652377,-2075.53,0.0002081,2]
[363850162,1748898652386,-440.0,0.0002081,2]
[363850164,1748898652396,-440.0,0.0002081,2]
[363850166,1748898652406,-1388.18,0.0002081,2]
[363850168,1748898652416,-440.0,0.0002081,2]
[363850170,1748898652425,-1209.51,0.0002081,2]
[363850172,1748898652435,-587.08,0.0002081,2]
[363850173,1748898652444,-440.0,0.0002081,2]
[363850174,1748898652454,-440.0,0.00020812,2]
[363850175,1748898652463,-151.0,0.00020812,2]
[363850176,1748898652474,-151.0,0.00020812,2]
[363850177,1748898652483,-440.0,0.00020812,2]
[363850178,1748898652493,-410.536259,0.00020812,2]
[363850179,1748898652503,-410.536259,0.00020812,2]
[363850180,1748898652512,-500.0,0.00020853,2]
[363850181,1748898652522,-502.14852776,0.00020853,2]
[363850182,1748898652532,-500.0,0.00020853,2]
[363850184,1748898652541,-600.0,0.00020853,2]
[363850185,1748898652550,-500.0,0.00020853,2]
[363850187,1748898652560,-500.0,0.00020853,2]
[363850189,1748898652569,-500.0,0.00020853,2]
[363850191,1748898652578,-523.5427595,0.00020853,2]
[363850193,1748898652588,-500.0,0.00020853,2]
[363850195,1748898652598,-500.0,0.00020853,2]
[363850197,1748898652611,-500.0,0.00020853,2]
[363850199,1748898652620,-501.56354978,0.00020853,2]
[363850201,1748898652630,-200.0,0.00020853,2]
[363850203,1748898652640,-500.0,0.00020853,2]
[363850206,1748898652650,-500.0,0.00020853,2]
[363850208,1748898652660,-900.0,0.00020862,2]
[363850210,1748898652670,-500.0,0.00020885,2]
[363850212,1748898652681,-5000.0,0.00020902,2]
[363850214,1748898652690,-151.0,0.00020906,2]
[363850216,1748898652700,-151.0,0.00020906,2]
[363850218,1748898652709,-481.431687,0.00020906,2]
[363850220,1748898652718,-481.431687,0.00020906,2]
[363850222,1748898652727,-5000.0,0.00020906,2]
[363850224,1748898652739,-500.0,0.0002093,2]
[363850226,1748898652748,-500.0,0.0002093,2]
[363850228,1748898652757,-250.0,0.00020961,2]
[363850230,1748898652767,-2295.442621,0.00021,2]
[363850232,1748898652776,-711.87223538,0.00021003,4]
[363850234,1748898652785,-1252.42,0.00021083,2]
[363850236,1748898652794,-180.434544,0.00021084,2]
[363850238,1748898652803,-822.63,0.00021084,2]
[363850240,1748898652812,-151.0,0.00021084,2]
[363850242,1748898652821,-440.0,0.00021084,2]
[363850244,1748898652831,-324.23,0.00021084,2]
[363850246,1748898652840,-1326.837435,0.00021084,2]
[363850248,1748898652849,-1326.837435,0.00021084,2]
[363850250,1748898652859,-396.594112,0.00021084,2]
[363850252,1748898652868,-396.594112,0.00021084,2]
[363850254,1748898652876,-542.2,0.00021084,2]
[363850256,1748898652885,-1447.71,0.00021084,2]
[363850258,1748898652894,-1041.47,0.00021084,2]
[363850260,1748898652904,-1168.92,0.00021084,2]
[363850262,1748898652913,-440.0,0.00021084,2]
[363850264,1748898652922,-3248.01,0.00021084,2]
[363850266,1748898652932,-440.0,0.00021084,2]
[363850279,1748898653041,-769.84,0.00021084,2]
[363850281,1748898653051,-709.82,0.00021084,2]
[363850283,1748898653061,-3691.36,0.00021084,2]
[363850285,1748898653070,-571.83,0.00021084,2]
[363850287,1748898653079,-1243.84,0.00021084,2]
[363850289,1748898653089,-440.0,0.00021084,2]
[363850291,1748898653099,-2429.72,0.00021084,2]
[363850293,1748898653108,-616.2,0.00021084,2]
[363850295,1748898653118,-2446.38,0.00021084,2]
[363850297,1748898653127,-2932.61,0.00021084,2]
[363850299,1748898653136,-1320.38,0.00021084,2]
[363850301,1748898653146,-1361.05,0.00021084,2]
[363850303,1748898653156,-759.05,0.00021084,2]
[363850305,1748898653165,-2075.53,0.00021084,2]
[363850307,1748898653175,-213.52,0.00021084,2]
[363850309,1748898653184,-440.0,0.00021084,2]
[363850311,1748898653193,-1388.18,0.00021084,2]
[363850313,1748898653203,-440.0,0.00021084,2]
[363850315,1748898653212,-1209.51,0.00021084,2]
[363850317,1748898653221,-587.08,0.00021084,2]
[363850319,1748898653231,-440.0,0.00021084,2]
[363850321,1748898653241,-1054.348671,0.00021084,2]
[363850323,1748898653251,-1054.348671,0.00021084,2]
[363850325,1748898653260,-328.75,0.00021086,2]
[363850327,1748898653270,-440.0,0.00021086,2]
[363850329,1748898653280,-500.0,0.00021095,3]
[363850331,1748898653289,-500.0,0.00021121,2]
[363850333,1748898653299,-151.0,0.000212,4]
[363850335,1748898653308,-711.87223538,0.00021245,4]
[363850337,1748898653319,-1252.42,0.00021357,2]
[363850339,1748898653328,-822.63,0.00021358,2]
[363850341,1748898653338,-364.1,0.00021358,2]
[363850343,1748898653348,-1447.71,0.00021358,2]
[363850345,1748898653357,-1041.47,0.00021358,2]
[363850347,1748898653366,-151.0,0.00021358,2]
[363850349,1748898653376,-1168.92,0.00021358,2]
[363850352,1748898653387,-440.0,0.00021358,2]
[363850354,1748898653396,-3248.01,0.00021358,2]
[363850356,1748898653406,-572.52,0.00021358,2]
[363850358,1748898653415,-769.84,0.00021358,2]
[363850360,1748898653425,-152.528378,0.00021358,2]
[363850362,1748898653434,-709.82,0.00021358,2]
[363850364,1748898653445,-152.528378,0.00021358,2]
[363850366,1748898653455,-3691.36,0.00021358,2]
[363850368,1748898653464,-571.83,0.00021358,2]
[363850370,1748898653474,-1243.84,0.00021358,2]
[363850372,1748898653483,-209.92,0.00021358,2]
[363850374,1748898653493,-2429.72,0.00021358,2]
[363850376,1748898653502,-616.2,0.00021358,2]
[363850378,1748898653512,-2446.38,0.00021358,2]
[363850380,1748898653521,-2932.61,0.00021358,2]
[363850382,1748898653530,-1320.38,0.00021358,2]
[363850384,1748898653540,-151.0,0.00021358,2]
[363850386,1748898653550,-1361.05,0.00021358,2]
[363850388,1748898653560,-759.05,0.00021358,2]
[363850390,1748898653569,-204.401088,0.00021358,2]
[363850392,1748898653578,-2075.53,0.00021358,2]
[363850394,1748898653587,-204.401088,0.00021358,2]
[363850396,1748898653597,-274.223042,0.00021358,2]
[363850398,1748898653610,-274.223042,0.00021358,2]
[363850400,1748898653620,-440.0,0.00021358,2]
[363850402,1748898653629,-151.0,0.00021358,2]
[363850404,1748898653639,-1388.18,0.00021358,2]
[363850406,1748898653650,-440.0,0.00021358,2]
[363850408,1748898653659,-1209.51,0.00021358,2]
[363850410,1748898653669,-587.08,0.00021358,2]
[363850412,1748898653678,-440.0,0.00021358,2]
[363850414,1748898653688,-157.752796,0.00021358,2]
[363850416,1748898653697,-151.0,0.0002136,2]
[363850418,1748898653706,-440.0,0.0002136,2]
[363850420,1748898653715,-673.475798,0.0002136,2]
[363850422,1748898653725,-673.475798,0.0002136,2]
[363850424,1748898653735,-1000.0,0.00021401,2]
[363850426,1748898653745,-1000.0,0.00021401,2]
[363850428,1748898653754,-5000.0,0.0002145,2]
[363850430,1748898653763,-1000.0,0.00021478,2]
[363850432,1748898653773,-1001.72276857,0.00021478,2]
[363850434,1748898653784,-711.87223538,0.00021486,5]
[363850436,1748898653793,-12669.63,0.0002149,2]